Cogmind - Beta 13 @@@ ROGUE MODE // 2024.04.12 @ 23:50:15 Player: Exceptionally Mediocre Result: Destroyed by Y-45 Defender with Heavy Assault Rifle Performance ------------- Evolutions (1) 500 Regions Visited (2) 400 Robots Destroyed (20) 100 Value Destroyed (413) 413 Prototype IDs (0) 0 Alien Tech Used (0) 0 Bonus (0) 0 TOTAL SCORE: 1413 Bonus ------- None Cogmind --------- Core Integrity 0/400 Matter 256/300 Energy 100/100 System Corruption 0% Temperature Cool (9) Movement Core (700) Ox13 Location -9/Materials Parts ------- > --- POWER (1) -------- (None) > --- PROPULSION (2) --- (None) > --- UTILITY (4) ------ High-capacity Storage Unit Signal Interpreter > --- WEAPON (2) ------- (None) > --- INVENTORY (20) --- Airjet Airjet EM Pulse Gun EM Pulse Gun EM Pulse Gun EM Pulse Gun Field Laser Field Laser Field Laser Field Laser Grenade Launcher Mining Laser Peak State ------------ > --- POWER ------------ Ion Engine > --- PROPULSION ------- Wheel Wheel > --- UTILITY ---------- High-capacity Storage Unit Signal Interpreter Improved Terrain Scanner Utility Shielding > --- WEAPON ----------- Medium Laser Heavy Assault Rifle > --- INVENTORY -------- Light Ion Engine Light Ion Engine Wheel Wheel Airjet Airjet Airjet Airjet Heat Sink EM Pulse Gun EM Pulse Gun EM Pulse Gun EM Pulse Gun Field Laser Field Laser Field Laser Field Laser Grenade Launcher Mining Laser [Rating: 15] Favorites ----------- Power Ion Engine Engine Ion Engine Propulsion Wheel Wheel Wheel Hover Unit Airjet Utility Improved Terrain Scanner Device Improved Terrain Scanner Storage High-capacity Storage Unit Processor Signal Interpreter Protection Utility Shielding Weapon Medium Laser Energy Gun Medium Laser Ballistic Gun Heavy Assault Rifle Launcher Grenade Launcher Build | -11 -10 -9 ------- Run | Yrd Mat Mat Slots Evolved 2 | . . 2 Power . | . . . Propulsion . | . . . Utility 2 | . . 2 Weapon . | . . . Parts Attached 25 | 8 5 12 Power 3 | 1 . 2 Engine 3 | 1 . 2 Core . | . . . Reactor . | . . . Propulsion 7 | 2 1 4 Treads . | . . . Leg . | . . . Wheel 5 | 2 1 2 Hover 2 | . . 2 Flight . | . . . Utility 7 | 2 2 3 Device 2 | 1 . 1 Storage 3 | 1 2 . Processor 1 | . . 1 Hackware . | . . . Protection 1 | . . 1 Artifact . | . . . Weapon 8 | 3 2 3 Energy Gun 5 | 3 1 1 Energy Cannon . | . . . Ballistic Gun 1 | . . 1 Ballistic Cannon . | . . . Launcher 2 | . 1 1 Special Weapon . | . . . Impact Weapon . | . . . Slashing Weapon . | . . . Piercing Weapon . | . . . Special Melee Weapon . | . . . Unidentified Prototypes . | . . . Parts Lost 15 | . 1 14 Power 3 | . . 3 Propulsion 7 | . 1 6 Utility 3 | . . 3 Weapon 2 | . . 2 Highest Loss Streak 14 | . 1 14 To Critical Strikes . | . . . Average Slot Usage (%) 94 | . 99 89 Engine 11 | . 14 9 Wheel 21 | . 27 16 Hover 1 | . . 2 Device 12 | . 14 10 Storage 12 | . 14 11 Processor 5 | . . 11 Protection 5 | . . 11 Energy Gun 14 | . 16 13 Ballistic Gun 1 | . . 2 Launcher 7 | . 12 2 Naked Turns . | . . . Heaviest Build 52 | 14 51 52 Greatest Support 20 | 20 20 20 Greatest Overweight (x) 13 | 1 2 13 Average Overweight (x) 1 | . 1 2 Largest Inventory Capacity 20 | 8 20 20 Average Capacity 15 | 7 16 20 Most Carried 20 | 8 12 20 Average Carried 9 | 4 8 12 Final Capacity 20 | 8 20 20 Final Carried 12 | 8 12 12 Class Distribution -------------------- 100% | Mutant Dominant Class ---------------- Mutant | -10/Materials Mutant | -9/Materials Resources | -11 -10 -9 ----------- Run | Yrd Mat Mat Matter Collected 435 | 280 75 80 Remotely . | . . . Salvage Created 599 | 235 184 180 Parts 41 | 23 10 8 Haulers Intercepted . | . . . Recyclers Shooed . | . . . Parts Field Recycled . | . . . Retrieved Matter . | . . . Parts Self-Destructed . | . . . Prevented . | . . . Kills | -11 -10 -9 ------- Run | Yrd Mat Mat Combat Hostiles Destroyed 9 | . 4 5 Guns 2 | . . 2 AOE 7 | . 4 3 Classes Destroyed 5 | 3 1 1 Worker 3 | 2 . 1 Tunneler 6 | 5 1 . Recycler 2 | 1 1 . Grunt 8 | . 4 4 Sentry 1 | . . 1 Best Kill Streak 6 | 4 6 4 Combat Bots Only 4 | . 4 3 Max Kills in Single Turn 3 | 1 3 2 Gunslinging . | . . . Exploded 3 | . 3 1 Melee . | . . . Uniques/NPCs Destroyed . | . . . Combat | -11 -10 -9 -------- Run | Yrd Mat Mat Hostile Shots Fired 146 | . 22 124 Missed 42 | . 5 37 Damage Taken 1445 | . 236 1209 Core 442 | . 28 414 Absorbed by Shields . | . . . Redirected to Shielding 50 | . . 50 Core Remaining (%) 94 | 100 88 . Volleys Fired 42 | 13 9 20 Largest 2 | 2 1 2 Hottest 100 | 90 50 100 Shots Fired 72 | 26 9 37 Gun 64 | 26 4 34 Cannon . | . . . Launcher 8 | . 5 3 Special . | . . . Kinetic 8 | . . 8 Thermal 56 | 26 4 26 Explosive 8 | . 5 3 Electromagnetic . | . . . Robot Hit Streak 6 | 6 2 4 Robot Miss Streak 2 | 1 2 2 Penetration Max . | . . . Secondary Targets . | . . . Shots Hit Robots 43 | 16 4 23 Core Hits 33 | 9 12 12 Critical Kills . | . . . Critical Parts Destroyed . | . . . Critical Strikes 2 | 2 . . Burn 2 | 2 . . Melee Attacks . | . . . Impact . | . . . Slashing . | . . . Piercing . | . . . Sneak Attacks . | . . . Combat Hostiles . | . . . Follow-up Attacks . | . . . Damage Inflicted 1037 | 199 344 494 Guns 520 | 199 25 296 Cannons . | . . . Explosions 517 | . 319 198 Melee . | . . . Ramming . | . . . Kinetic 85 | . . 85 Thermal 435 | 199 25 211 Explosive 517 | . 319 198 Electromagnetic . | . . . Impact . | . . . Slashing . | . . . Piercing . | . . . Highest Corruption . | . . . Average Corruption . | . . . Corruption Purged . | . . . Corruption Blocked . | . . . Overload Shots . | . . . Overflow Damage . | . . . Projectiles . | . . . Explosions . | . . . Melee . | . . . Knockbacks . | . . . Impact . | . . . Kinetic . | . . . Secondary . | . . . Self-Inflicted Damage 26 | . 26 . Shots 1 | . 1 . Rammed . | . . . Targets Rammed . | . . . Kicked . | . . . Crushed . | . . . Highest Temperature 266 | 90 20 266 Average Temperature 58 | 39 10 87 Received Heat Transfer 519 | . 120 399 Siege Activations . | . . . Robots Corrupted . | . . . Combat Hostiles . | . . . Parts Fried . | . . . Impact Corruptions . | . . . Robots Melted . | . . . Combat Hostiles . | . . . Parts Melted . | . . . Heat Transferred 1360 | 657 74 629 Parts Sabotaged . | . . . Parts Stolen . | . . . Parts Stripped . | . . . Power Chain Reactions . | . . . Alert | -11 -10 -9 ------- Run | Yrd Mat Mat Peak Influence 228 | 40 166 228 Initial 69 | . 26 69 Average 117 | 16 137 155 Maximum Alert Level 1 | . . 1 Low Security (%) 86 | 100 100 67 Level 1 13 | . . 32 Level 2 . | . . . Level 3 . | . . . Level 4 . | . . . Level 5 . | . . . High Security . | . . . Max Security . | . . . Squads Dispatched 2 | . 1 1 Investigation . | . . . Extermination . | . . . Reinforcement 2 | . 1 1 Assault . | . . . Garrison . | . . . Intercept . | . . . Searches Triggered . | . . . Construction Impeded . | . . . Haulers Reinforced . | . . . Active Scanning Responses . | . . . Cargo Convoy Interrupts . | . . . Stealth | -11 -10 -9 --------- Run | Yrd Mat Mat Distress Signals . | . . . Communications Jammed . | . . . Distress Signals . | . . . Times Spotted 21 | . 10 11 Peak Tracking Total 5 | . 4 5 Tactical Retreats . | . . . Traps | -11 -10 -9 ------- Run | Yrd Mat Mat Traps Triggered . | . . . Indirectly . | . . . Trap Hack Attempts . | . . . Triggered . | . . . Disarmed . | . . . Reprogrammed . | . . . Reused . | . . . Traps Extracted . | . . . Installed . | . . . Triggered . | . . . Machines | -11 -10 -9 ---------- Run | Yrd Mat Mat Machines Disabled . | . . . Max in Single Turn . | . . . Machines Repaired . | . . . Machines Dismantled . | . . . Machines Sabotaged . | . . . Overloaded Fab Kills . | . . . Hacking | -11 -10 -9 --------- Run | Yrd Mat Mat Machines Accessed 1 | . 1 . Terminals 1 | . 1 . Fabricators . | . . . Repair Stations . | . . . Recycling Units . | . . . Scanalyzers . | . . . Garrison Access . | . . . Total Hacks 2 | . 2 . Successful 1 | . 1 . Failed 1 | . 1 . Catastrophic . | . . . Database Lockouts . | . . . Manual 2 | . 2 . Terminals 2 | . 2 . Fabricators . | . . . Repair Stations . | . . . Recycling Units . | . . . Scanalyzers . | . . . Garrison Access . | . . . Terminal Hacks . | . . . Fabricator Hacks . | . . . Repair Station Hacks . | . . . Recycling Unit Hacks . | . . . Scanalyzer . | . . . Garrison Access Hacks . | . . . Unauthorized Hacks 1 | . 1 . Terminals 1 | . 1 . Botnet 1 | . 1 . Fabricators . | . . . Repair Stations . | . . . Recycling Units . | . . . Scanalyzers . | . . . Garrison Access . | . . . Data Cores Recovered . | . . . Used . | . . . Hacking Detections . | . . . Full Trace Events . | . . . Feedback Events . | . . . Feedback Blocked . | . . . Robot Schematics Acquired . | . . . Robots Built . | . . . Authchips . | . . . Time . | . . . Total Robot Build Rating . | . . . Part Schematics Acquired . | . . . Parts Built . | . . . Authchips . | . . . Time . | . . . Total Part Build Rating . | . . . Parts Repaired . | . . . Time . | . . . Parts Recycled . | . . . Recycled Matter . | . . . Retrieved Matter . | . . . Retrieved Components . | . . . Parts Scanalyzed . | . . . Part Schematics Acquired . | . . . Parts Damaged . | . . . Bothacking | -11 -10 -9 ------------ Run | Yrd Mat Mat Used RIF Installer . | . . . Robots Hacked . | . . . Non-combat . | . . . Combat . | . . . Robot Hacks Applied . | . . . Relay Couplers Released . | . . . Fabnet Peak Effective % . | . . . Robots Rewired . | . . . Allies Hacked . | . . . Hacks Repelled . | . . . Allies | -11 -10 -9 -------- Run | Yrd Mat Mat Total Allies . | . . . Largest Group . | . . . Highest-Rated Group . | . . . Highest-Rated Ally . | . . . Total Orders . | . . . Ally Attacks . | . . . Total Damage . | . . . Kills . | . . . Allies Corrupted . | . . . Allies Melted . | . . . Intel | -11 -10 -9 ------- Run | Yrd Mat Mat Robot Analysis Total . | . . . Derelict Logs Recovered . | . . . Drone Launches . | . . . Drone Recoveries . | . . . Exploration | -11 -10 -9 ------------- Run | Yrd Mat Mat Turns Passed 553 | 125 204 224 Spaces Moved 351 | 79 171 101 Core 7 | 5 . 2 Treads . | . . . Legs . | . . . Wheels 333 | 74 171 88 Hover 11 | . . 11 Flight . | . . . Fastest Speed 50 | 50 80 110 Average Speed 108 | 79 100 144 Slowest Speed 700 | 95 110 700 Overloaded Moves . | . . . Propulsion Burnouts . | . . . Robots Hopped . | . . . Cave-ins Triggered . | . . . Exploration Rate (%) 17 | 3 38 12 Regions Visited 2 Branch Regions . Pre-discovered Areas . | . . . Known Exits Taken . | . . . Unknown Exits Taken 2 | 1 1 . Scrap Searched . | . . . Spaces Dug . | . . . Terrain Destroyed 36 | . 27 9 Melee . | . . . Projectile . | . . . AOE 36 | . 27 9 Terrain Rammed . | . . . Walls Destroyed . | . . . Machines Disabled . | . . . Actions | -11 -10 -9 --------- Run | Yrd Mat Mat Total 451 | 111 194 146 Wait . | . . . Move 349 | 78 170 101 Hop . | . . . Pick Up 27 | 10 6 11 Fast Attach 8 | 7 1 . Attach 11 | . 1 10 Detach . | . . . Swap 6 | 1 3 2 Drop 8 | 2 4 2 Fire 42 | 13 9 20 Melee . | . . . Ram . | . . . Kick . | . . . Crush . | . . . Escape Stasis . | . . . Rewire . | . . . Trap . | . . . Miscellaneous . | . . . Route ------- -11/Scrapyard -10/Materials -9/Materials (discovered 1 exit: *Min) History --------- Turn | Location | Event 21 | -11/Scrapyard | Discovered new exit (range 16) 126 | -11/Scrapyard | Entered Materials 244 | -10/Materials | Discovered new exit (range 6) 310 | -10/Materials | Build established: Mutant 330 | -10/Materials | Entered another Materials area 330 | -9/Materials | Evolved 2 slots: Utility x2 423 | -9/Materials | Discovered new exit (range 5) 427 | -9/Materials | Identified exit to Mines 541 | -9/Materials | Core integrity fell below 50% 550 | -9/Materials | Core integrity fell below 20% 554 | -9/Materials | Destroyed by Y-45 Defender with Heavy Assault Rifle Last Messages --------------- 00467_ Acquired Field Laser. 00471_ Dropped Med. Laser. 00484_ Imp. Terrain Scanner destroyed. 00487_ Critical hit (Burn: +37). 00488_ Wheel destroyed. 00497_ Ion Engine destroyed. 00500_ Med. Laser destroyed. 00505_ Wheel destroyed. 00516_ Hvy. Assault Rifle destroyed. 00522_ Lgt. Ion Engine destroyed. 00525_ Airjet destroyed. 00530_ K-01 Serf collects debris. 00538_ Lgt. Ion Engine destroyed. 00541_ K-01 Serf collects debris. 00541_ Airjet destroyed. 00544_ Heat Sink destroyed. 00545_ K-01 Serf collects debris. 00550_ Utility Shielding destroyed. 00551_ S-10 Pest destroyed. 00553_ Critical hit (Burn: +37). Map ----- +----------------------------------------------------+ | ?????????????# #??????# #????????# #???? | | ?????????????# ###+#??# #?##?##??# #???? | | ????????????## ##?# #????????# #???? | | ?????????????# |#??# ##???????# #???? | | ??? ?????????# T ##?# #??####### #???? | | ??????? ?????# #### ##?# #???? | | ??????????? ?# ### #######???? | | ???? ????????# #?????????? | | ?????????????# == #?????????? | | ??????????? ?##%######## [|! ##?????"??# | | ?????????"????# #?##!! [u! ##??""????# | | ?????????? ?### ####!! [! # """"??? | | ????????????# ##[ !u/ ????? | | ????????????# ## # """???? | | ???????????# > ## ## #/?""????? | | ?? ?????????# ##[ ## # ?"????? | | ????????????# ! ####### Y # ????? | | ????????????## ##?????#Y # ###????? | | ?????????????# #??????# u # ??????? | | ?????????????# #????### % ## ?????? | | ?????????????# #????# = ## ?? | | ?????????????# #????# # ?? | | ?????????????# #????# + ??? | | ????????????? T????# #???????? | | ????????????? #????# #???????? | | ????????????? #????###@###### #???????? | | ????????????? #????? =k ???? +???????? | | ?????????????##+##??? "" %s ???#???????? | | ???????????????????# ""S #?????????? | | ???????????????????# "" """ #?????????? | | ???????????????????# s """ #?????????? | | ???????????????????? """ #?????????? | | ???????????????????? #?????????? | | ???????????????????##########?##?????????? | | ?????????????????????????????????????????? | | ?????????????????????????????????????????? | | ?????????????????????????????????????????? | | ?????????????????????????????????????????? | | ?????????????????????????????????????????? | | ?????????????????????????????????????????? | | ?????????????????????????????????????????? | | ?????????????????????????????????????????? | | ?????????????????????????????????????????? | | ?????????????????????????????????????????? | | ?????????????????????????????????????????? | | ?????????????????????????????????????????? | | ?????????????????????????????????????????? | | ?????????????????????????????????????????? | | ?????????????????????????????????????????? | | ?????????????????????????????????????????? | +----------------------------------------------------+ Best States ------------- Heat Dissipation 38 Energy Generation 10 Energy Capacity 250 Matter Stores 300 Matter Capacity 300 Sight Range 16 Terrain Scan Range 16 Terrain Scan Density 10 Utility Shielding 33 Evasion (%) 44 Item Schematics ----------------- None Robot Schematics ------------------ None Fabricated ------------ Nothing Alien Tech Used ----------------- None Achievements -------------- None Challenges ------------ None Game ------ Seed PortableZioniteKatana Manual? 0 Play Time 00:09:19 Cumulative 47.8 hours Start 2024.04.12 @ 23:42:18 End 2024.04.12 @ 23:50:15 Sessions 1 Manual Loads 0 Difficulty Rogue Special Mode None Game No. 52 Rogue 52 Adventurer 0 Explorer 0 Win Type - Total 0 Types 0/0/0/0/0/0/0/0/0 Lore% 17 Gallery% 36 Achievement% 26 Wizard Run 0 Options --------- Layout 1 ASCII 0 Keyboard 1 Movement Vi Keybinds 0 Fullscreen 1 Font 24/Smallcaps Map View 50x35 Zoom Use 0% Tactical HUD 1 Map Filters NONE Filters NONE Steam 1 RUN: 2271158c-c11b-4fb1-8516-36ed1352fd29